Cogmind - Beta 16.1 @@@ ROGUE MODE // 2026.02.16 @ 14:19:09 // Winter2019/RPGLIKE Player: badjay Result: Destroyed by NK-SZX(z) with Zionite Laser-S Performance ------------- Evolutions (4) 2000 Regions Visited (17) 3400 Robots Destroyed (167) 835 Value Destroyed (6430) 6430 Prototype IDs (220) 4400 Alien Tech Used (0) 0 Bonus (4564) 4564 TOTAL SCORE: 21629 Bonus ------- Follower Combat Kills 336 Hunted by Unchained 500 Met Data Miner 300 Used Data Conduit 3000 Met Imprinter 300 Pursued by Intercept 500 Friendly Fire -372 Cogmind --------- Core Integrity 0/600 Matter 300/300 Energy 25/300 System Corruption 0% Temperature Cool (9) Movement Flying (24) Location -6/Deep Caves Parts ------- > --- POWER (2) -------- Cold Fusion Reactor > --- PROPULSION (5) --- Xenon Bombardment Thruster Improved Cesium-ion Thruster Improved Cesium-ion Thruster Cooled VTOL Module Cooled VTOL Module > --- UTILITY (9) ------ Target Analyzer Core Analyzer Weapon Cycler Improved Reaction Control System Force Field System Mapper Deep Network Scanner Ghost Barrier Quantum Router > --- WEAPON (4) ------- Force Lance Force Lance Force Lance Force Lance > --- INVENTORY (3) ---- Protomatter-64 Force Booster Peak State ------------ > --- POWER ------------ Cold Fusion Reactor > --- PROPULSION ------- Xenon Bombardment Thruster Improved Cesium-ion Thruster Improved Cesium-ion Thruster Cooled VTOL Module Cooled VTOL Module > --- UTILITY ---------- Target Analyzer Core Analyzer Weapon Cycler Force Field System Mapper Deep Network Scanner Ghost Barrier Quantum Router Phasing AFG > --- WEAPON ----------- Force Lance Force Lance Force Lance Force Lance > --- INVENTORY -------- Protomatter Protomatter Force Booster [Rating: 125] Favorites ----------- Power Improved Ion Engine Engine Improved Ion Engine Reactor Cold Fusion Reactor Propulsion Cooled VTOL Module Flight Unit Cooled VTOL Module Utility Target Analyzer Device Shield Generator Processor Target Analyzer Hackware Ghost Barrier Weapon Force Lance Impact Weapon Power Maul Slashing Weapon Greatsword Piercing Weapon Force Lance Build | -11 -10 -10 -9 -9 -8 -7 -7 -7 -7 -6 -6 -6 -6 -6 -6 -6 -6 ------- Run | Yrd Mat Min Mat Sto Mat Fac Low Low Dat Pro Fac Was Fac Low Low Zio Dee Slots Evolved 16 | . . . . 5 1 3 . . 4 . 1 . 2 . . . . Power 1 | . . . . . . . . . . . . . 1 . . . . Propulsion 4 | . . . . 3 . . . . . . . . 1 . . . . Utility 8 | . . . . . 1 2 . . 4 . 1 . . . . . . Weapon 3 | . . . . 2 . 1 . . . . . . . . . . . Parts Attached 55 | . 1 . 3 10 1 19 . . 4 . 4 . 8 3 1 1 . Power 3 | . . . 1 1 . . . . . . 1 . . . . . . Engine 2 | . . . 1 1 . . . . . . . . . . . . . Core . | . . . . . . . . . . . . . . . . . . Reactor 1 | . . . . . . . . . . . 1 . . . . . . Propulsion 18 | . 1 . . 7 . 9 . . . . . . 1 . . . . Treads . | . . . . . . . . . . . . . . . . . . Leg . | . . . . . . . . . . . . . . . . . . Wheel . | . . . . . . . . . . . . . . . . . . Hover . | . . . . . . . . . . . . . . . . . . Flight 18 | . 1 . . 7 . 9 . . . . . . 1 . . . . Utility 19 | . . . 1 . 1 3 . . 4 . 1 . 5 2 1 1 . Device 10 | . . . 1 . . 2 . . . . . . 5 1 . 1 . Storage . | . . . . . . . . . . . . . . . . . . Processor 5 | . . . . . 1 1 . . . . 1 . . 1 1 . . Hackware 4 | . . . . . . . . . 4 . . . . . . . . Protection . | . . . . . . . . . . . . . . . . . . Artifact . | . . . . . . . . . . . . . . . . . . Weapon 15 | . . . 1 2 . 7 . . . . 2 . 2 1 . . . Energy Gun . | . . . . . . . . . . . . . . . . . . Energy Cannon . | . . . . . . . . . . . . . . . . . . Ballistic Gun . | . . . . . . . . . . . . . . . . . . Ballistic Cannon . | . . . . . . . . . . . . . . . . . . Launcher . | . . . . . . . . . . . . . . . . . . Special Weapon . | . . . . . . . . . . . . . . . . . . Impact Weapon 2 | . . . 1 . . 1 . . . . . . . . . . . Slashing Weapon 8 | . . . . 2 . 5 . . . . . . . 1 . . . Piercing Weapon 5 | . . . . . . 1 . . . . 2 . 2 . . . . Special Melee Weapon . | . . . . . . . . . . . . . . . . . . Unidentified Prototypes 8 | . . . . . . 3 . . 4 . . . . . . 1 . Parts Lost 1 | . . . . . . . . . . . . . 1 . . . . Power . | . . . . . . . . . . . . . . . . . . Propulsion . | . . . . . . . . . . . . . . . . . . Utility 1 | . . . . . . . . . . . . . 1 . . . . Weapon . | . . . . . . . . . . . . . . . . . . Highest Loss Streak 1 | . . . . . . . . . . . . . 1 . . . . To Critical Strikes . | . . . . . . . . . . . . . . . . . . Average Backups . | . . . . . . . . . . . . . . . 1 1 1 Power . | . . . . . . . . . . . . . . . . . . Propulsion . | . . . . . . . . . . . . . . . . . . Utility . | . . . . . . . . . . . . . . . 1 1 1 Weapon . | . . . . . . . . . . . . . . . . . . Tool/Special . | . . . . . . . . . . . . . . . . . . Unused Backups . | . . . . . . . . . . . . . . . . . . Power . | . . . . . . . . . . . . . . . . . . Propulsion . | . . . . . . . . . . . . . . . . . . Utility . | . . . . . . . . . . . . . . . . . . Weapon . | . . . . . . . . . . . . . . . . . . Tool/Special . | . . . . . . . . . . . . . . . . . . Average Slot Usage (%) 89 | . 5 25 61 87 100 92 92 92 92 94 90 88 93 91 94 95 95 Engine 3 | . . . . 1 10 8 7 7 6 5 2 . . . . . . Reactor 1 | . . . . . . . . . . . 3 5 5 5 5 5 5 Flight 28 | . 5 25 25 36 43 34 30 30 28 23 22 22 24 25 25 25 25 Device 12 | . . . 12 13 10 13 15 15 14 11 11 11 11 14 15 15 15 Processor 8 | . . . . . 1 10 15 15 14 11 12 11 10 6 9 10 10 Hackware 10 | . . . . . . . . . 4 23 22 22 21 20 20 20 20 Impact Weapon 5 | . . . 23 13 10 5 7 7 6 5 3 . . . . . . Slashing Weapon 8 | . . . . 21 21 15 7 7 6 5 5 5 1 . . . . Piercing Weapon 8 | . . . . . . 2 7 7 6 5 7 11 16 20 20 20 20 Peak Build Rating 125 | . 1 1 7 20 23 49 49 49 87 87 97 97 116 115 117 125 117 Average Rating 65 | . . 1 4 13 20 41 48 49 60 87 93 97 108 113 116 116 117 On Entrance 57 | . . 1 1 5 20 23 49 49 49 87 87 97 97 115 113 117 117 Avg Prop Armor Cover (%) . | . . . . . . . . . . . . . . . . . . Naked Turns 68 | . 68 . . . . . . . . . . . . . . . . Heaviest Build 49 | . . . 5 16 16 21 20 20 20 20 32 32 49 49 46 46 46 Greatest Support 53 | 3 4 4 9 25 25 31 31 31 31 31 27 32 51 49 49 49 53 Greatest Overweight (x) 1 | . . . . . . . . . . . 1 1 . . . . . Average Overweight (x) . | . . . . . . . . . . . . . . . . . . Largest Inventory Capacity 3 | . . . . 1 1 1 1 1 1 3 3 3 3 3 3 3 3 Average Capacity 1 | . . . . . 1 1 1 1 1 1 3 3 3 3 3 3 3 Most Carried 3 | . . . . 1 1 1 1 1 1 3 3 3 3 3 3 3 2 Average Carried 1 | . . . . . 1 1 1 1 1 1 3 3 2 2 3 2 2 Final Capacity 3 | . . . . 1 1 1 1 1 1 3 3 3 3 3 3 3 3 Final Carried 3 | . . . . 1 1 1 1 1 1 3 3 3 3 3 3 2 2 Class Distribution -------------------- 43% | Wizard-Sprinter 40% | Hacker-Sprinter 7% | Hacker-Mutant 4% | Wizard-Gladiator Dominant Class ---------------- Hacker-Mutant | -10/Materials Hacker-Mutant | -10/Mines Hacker-Mutant | -9/Materials Hacker-Sprinter | -9/Storage Hacker-Sprinter | -8/Materials Hacker-Sprinter | -7/Factory Hacker-Sprinter | -7/Lower Caves Hacker-Sprinter | -7/Lower Caves Hacker-Sprinter | -7/Data Miner Wizard-Sprinter | -6/Proximity Caves Wizard-Sprinter | -6/Factory Wizard-Sprinter | -6/Waste Wizard-Sprinter | -6/Factory Wizard-Sprinter | -6/Lower Caves Wizard-Sprinter | -6/Lower Caves Wizard-Sprinter | -6/Zion Wizard-Sprinter | -6/Deep Caves Resources | -11 -10 -10 -9 -9 -8 -7 -7 -7 -7 -6 -6 -6 -6 -6 -6 -6 -6 ----------- Run | Yrd Mat Min Mat Sto Mat Fac Low Low Dat Pro Fac Was Fac Low Low Zio Dee Matter Collected 855 | 200 10 . 30 100 10 216 25 . . 46 40 . 98 50 10 . 20 Remotely . | . . . . . . . . . . . . . . . . . . Salvage Created 7088 | . 56 . 309 687 217 1121 367 250 24 1025 598 . 1215 733 346 . 140 Parts 327 | . 10 . 16 22 7 41 18 25 5 38 20 . 72 26 19 . 8 Haulers Intercepted 10 | . . . 1 3 . 4 . . . . . . 2 . . . . Recyclers Shooed 1 | . . . 1 . . . . . . . . . . . . . . Parts Field Recycled . | . . . . . . . . . . . . . . . . . . Retrieved Matter . | . . . . . . . . . . . . . . . . . . Parts Self-Destructed 110 | . . . . . . . 21 27 . 38 . . . 5 19 . . Prevented 1 | . . . . . . . . 1 . . . . . . . . . Parts Restored . | . . . . . . . . . . . . . . . . . . Kills | -11 -10 -10 -9 -9 -8 -7 -7 -7 -7 -6 -6 -6 -6 -6 -6 -6 -6 ------- Run | Yrd Mat Min Mat Sto Mat Fac Low Low Dat Pro Fac Was Fac Low Low Zio Dee Combat Hostiles Destroyed 141 | . 3 . 8 8 5 18 10 10 . 22 7 . 27 8 10 . 5 Melee 127 | . 3 . 5 4 4 17 9 9 . 20 6 . 27 8 10 . 5 Classes Destroyed 15 | . 1 . 5 2 1 1 . . . . 1 . 1 1 . . 2 Hauler 10 | . . . 1 3 . 4 . . . . . . 2 . . . . Recycler 1 | . . . . . . 1 . . . . . . . . . . . Operator 5 | . . . . 1 . 3 . . . . . . 1 . . . . Watcher 10 | . . . . 1 2 2 . . . . 2 . 3 . . . . Swarmer 36 | . 3 . . . 3 6 3 5 . 1 . . 7 . 8 . . Grunt 58 | . . . 3 1 . 10 6 4 . 14 5 . 14 . 1 . . Brawler 3 | . . . 1 . . . . . . 2 . . . . . . . Duelist 5 | . . . 1 . . . 1 . . 2 1 . . . . . . Sentry 21 | . . . 3 7 1 2 . . . 3 . . 4 . 1 . . Hunter 3 | . . . . . 1 . . 1 . . . . . 1 . . . Programmer 2 | . . . . . . . . . . . . . 2 . . . . Behemoth 1 | . . . . . . . . . . . 1 . . . . . . Z-Light 2 | . . . . . . . . . . . . . . . . . 2 Assembled 3 | . . . . . . . . . . . . . . . . . 3 Savage 5 | . . . . . . . . . . . . . . 5 . . . Butcher 3 | . . . . . . . . . . . . . . 3 . . . Mutant 1 | . . . . . . . . . . . . . . 1 . . . Best Kill Streak 8 | . 3 . 4 4 5 8 5 5 1 6 4 . 6 3 5 . 3 Combat Bots Only 6 | . 3 . 3 2 4 3 5 5 . 6 4 . 5 3 5 . 3 Max Kills in Single Turn 2 | . 1 . 1 1 1 1 1 2 1 1 1 . 2 1 2 . 1 Gunslinging . | . . . . . . . . . . . . . . . . . . Exploded . | . . . . . . . . . . . . . . . . . . Melee 2 | . 1 . 1 1 1 1 1 2 . 1 1 . 2 1 2 . 1 Uniques/NPCs Destroyed 1 | . . . . . . . . . 1 . . . . . . . . Data Miner (-7/Data Miner) Combat | -11 -10 -10 -9 -9 -8 -7 -7 -7 -7 -6 -6 -6 -6 -6 -6 -6 -6 -------- Run | Yrd Mat Min Mat Sto Mat Fac Low Low Dat Pro Fac Was Fac Low Low Zio Dee Hostile Shots Fired 778 | . 53 10 23 13 49 89 49 37 6 79 45 . 190 22 59 . 54 Missed 394 | . 18 6 9 6 27 42 26 21 5 39 25 . 100 11 31 . 28 Hits 384 | . 35 4 14 7 22 47 23 16 1 40 20 . 90 11 28 . 26 Melee 14 | . . . 3 . . . 1 . . 4 . . . 6 . . . Projectile 370 | . 35 4 11 7 22 47 22 16 1 36 20 . 90 5 28 . 26 AOE 2 | . . 2 . . . . . . . . . . . . . . . Critical Strikes 14 | . 2 . . . . . . . . 4 3 . 2 2 1 . . Damage Taken 4617 | . 349 100 230 73 156 422 285 140 36 572 372 . 718 165 282 . 717 Core 3897 | . 346 96 190 60 134 355 229 118 28 467 312 . 589 133 225 . 615 Absorbed by Shields 1686 | . . . 39 24 64 170 106 54 12 207 116 . 558 141 120 . 75 Redirected to Core 2396 | . 9 12 130 40 59 211 177 72 28 377 221 . 386 117 174 . 383 Core Remaining (%) 80 | 100 . 26 . 100 77 . . . . 100 . . . . . . . Volleys Fired . | . . . . . . . . . . . . . . . . . . Largest . | . . . . . . . . . . . . . . . . . . Hottest . | . . . . . . . . . . . . . . . . . . Shots Fired . | . . . . . . . . . . . . . . . . . . Gun . | . . . . . . . . . . . . . . . . . . Cannon . | . . . . . . . . . . . . . . . . . . Launcher . | . . . . . . . . . . . . . . . . . . Special . | . . . . . . . . . . . . . . . . . . Kinetic . | . . . . . . . . . . . . . . . . . . Thermal . | . . . . . . . . . . . . . . . . . . Explosive . | . . . . . . . . . . . . . . . . . . Electromagnetic . | . . . . . . . . . . . . . . . . . . Robot Hit Streak . | . . . . . . . . . . . . . . . . . . Robot Miss Streak . | . . . . . . . . . . . . . . . . . . Penetration Max . | . . . . . . . . . . . . . . . . . . Secondary Targets . | . . . . . . . . . . . . . . . . . . Shots Hit Robots 350 | . . . 17 22 17 63 20 15 1 52 21 . 67 23 16 . 16 Core Hits 151 | . 7 . 4 7 6 20 10 9 1 21 8 . 34 11 9 . 4 Critical Kills 5 | . . . 1 . 3 1 . . . . . . . . . . . Critical Parts Destroyed 18 | . . . 5 5 2 4 1 . . 1 . . . . . . . Critical Strikes 78 | . . . 6 6 5 10 4 4 . 8 8 . 15 5 4 . 3 Smash 25 | . . . 6 6 5 5 1 . . 1 1 . . . . . . Sever 23 | . . . . . . 5 3 3 . 7 4 . 1 . . . . Impale 30 | . . . . . . . . 1 . . 3 . 14 5 4 . 3 Melee Attacks 505 | . . . 18 47 28 111 24 21 1 57 30 . 80 29 22 19 18 Impact 126 | . . . 18 38 18 31 3 4 . 9 5 . . . . . . Slashing 187 | . . . . 9 10 77 16 15 1 41 16 . 2 . . . . Piercing 192 | . . . . . . 3 5 2 . 7 9 . 78 29 22 19 18 Sneak Attacks 27 | . . . 2 6 . 9 2 . 1 2 . . 2 3 . . . Combat Hostiles 6 | . . . . 2 . 3 1 . . . . . . . . . . Follow-up Attacks 79 | . . . . 1 8 13 4 4 . 11 5 . 14 5 6 . 8 Damage Inflicted 20591 | . 99 . 654 1178 618 3893 1263 805 110 3008 1277 . 4166 1536 970 . 1014 Guns . | . . . . . . . . . . . . . . . . . . Cannons . | . . . . . . . . . . . . . . . . . . Explosions . | . . . . . . . . . . . . . . . . . . Melee 20492 | . . . 654 1178 618 3893 1263 805 110 3008 1277 . 4166 1536 970 . 1014 Ramming 99 | . 99 . . . . . . . . . . . . . . . . Kinetic . | . . . . . . . . . . . . . . . . . . Thermal . | . . . . . . . . . . . . . . . . . . Explosive . | . . . . . . . . . . . . . . . . . . Electromagnetic . | . . . . . . . . . . . . . . . . . . Impact 4010 | . . . 654 1130 493 1070 38 75 . 301 249 . . . . . . Slashing 8295 | . . . . 48 125 2792 1129 673 110 2504 811 . 103 . . . . Piercing 8187 | . . . . . . 31 96 57 . 203 217 . 4063 1536 970 . 1014 Highest Corruption 6 | . 3 3 . . . 1 1 1 1 1 . 5 6 . . . . Average Corruption 1 | . 2 3 . . . 1 1 1 1 1 . 5 5 . . . . Corruption Purged 6 | . . . . . . . . . . . . . 6 . . . . Corruption Blocked . | . . . . . . . . . . . . . . . . . . Effects 25 | . . 1 . . . 8 4 . . 5 . . 7 . . . . Message Errors 6 | . . . . . . . 2 . . 2 . . 2 . . . . Matter Fused 6 | . . . . . . 3 1 . . 1 . . 1 . . . . Heat Flow Errors 4 | . . . . . . 3 . . . . . . 1 . . . . Energy Discharges 2 | . . . . . . 1 . . . 1 . . . . . . . Data Loss (minor) 3 | . . 1 . . . . . . . . . . 2 . . . . Data Loss (major) 3 | . . . . . . . 1 . . 1 . . 1 . . . . Alerts 1 | . . . . . . 1 . . . . . . . . . . . Overload Shots . | . . . . . . . . . . . . . . . . . . Overflow Damage 3293 | . . . 264 481 161 644 95 14 . 238 69 . 771 232 107 . 217 Projectiles . | . . . . . . . . . . . . . . . . . . Explosions . | . . . . . . . . . . . . . . . . . . Melee 3293 | . . . 264 481 161 644 95 14 . 238 69 . 771 232 107 . 217 Knockbacks 10 | . . . 1 . 3 4 1 1 . . . . . . . . . Impact 10 | . . . 1 . 3 4 1 1 . . . . . . . . . Kinetic . | . . . . . . . . . . . . . . . . . . Secondary . | . . . . . . . . . . . . . . . . . . Self-Inflicted Damage 43 | . 43 . . . . . . . . . . . . . . . . Shots . | . . . . . . . . . . . . . . . . . . Rammed 30 | . 30 . . . . . . . . . . . . . . . . Targets Rammed 30 | . 30 . . . . . . . . . . . . . . . . Kicked . | . . . . . . . . . . . . . . . . . . Crushed . | . . . . . . . . . . . . . . . . . . Highest Temperature 266 | . . . . 1 9 202 82 19 76 3 232 . 266 . . . 76 Average Temperature 34 | . . . . 1 1 28 43 11 47 1 92 . 84 . . . 34 Received Heat Transfer 1274 | . 6 6 28 16 18 90 90 30 . 210 346 . 225 . . . 209 Siege Activations . | . . . . . . . . . . . . . . . . . . Martial Activations . | . . . . . . . . . . . . . . . . . . Shielding Activations . | . . . . . . . . . . . . . . . . . . Robots Disrupted . | . . . . . . . . . . . . . . . . . . Combat Hostiles . | . . . . . . . . . . . . . . . . . . Robots Corrupted 19 | . . . 4 5 2 3 1 1 . 2 1 . . . . . . Combat Hostiles 14 | . . . 3 4 1 1 1 1 . 2 1 . . . . . . Parts Fried 20 | . . . 5 5 3 5 1 1 . . . . . . . . . Impact Corruptions 53 | . . . 10 16 7 15 1 1 . 2 1 . . . . . . Robots Melted . | . . . . . . . . . . . . . . . . . . Combat Hostiles . | . . . . . . . . . . . . . . . . . . Parts Melted . | . . . . . . . . . . . . . . . . . . Heat Transferred . | . . . . . . . . . . . . . . . . . . Parts Sabotaged . | . . . . . . . . . . . . . . . . . . Parts Stolen . | . . . . . . . . . . . . . . . . . . Parts Stripped . | . . . . . . . . . . . . . . . . . . Power Chain Reactions . | . . . . . . . . . . . . . . . . . . Alert | -11 -10 -10 -9 -9 -8 -7 -7 -7 -7 -6 -6 -6 -6 -6 -6 -6 -6 ------- Run | Yrd Mat Min Mat Sto Mat Fac Low Low Dat Pro Fac Was Fac Low Low Zio Dee Maximum Alert Level 2 | . . . . 2 1 1 . . . . 1 . 1 . . . . Low Security (%) 50 | 100 100 100 100 70 56 54 . . . . . 100 24 . . . . Level 1 48 | . . . . 23 43 45 . . . . 100 . 75 . . . . Level 2 1 | . . . . 6 . . . . . . . . . . . . . Level 3 . | . . . . . . . . . . . . . . . . . . Level 4 . | . . . . . . . . . . . . . . . . . . Level 5 . | . . . . . . . . . . . . . . . . . . High Security . | . . . . . . . . . . . . . . . . . . Max Security . | . . . . . . . . . . . . . . . . . . Peak Influence 411 | . 127 60 187 411 252 382 . . . . 383 130 399 . . . . Initial 312 | . . 45 15 78 169 40 . . . . 312 130 91 . . . . Average 209 | . 68 47 82 198 181 193 . . . . 343 130 263 . . . . Influence Increases 4809 | . 157 15 262 881 251 718 240 295 20 710 201 . 794 30 235 . . Destroy 0b10 Robot/C 2860 | . 60 . 160 420 100 360 200 200 20 440 140 . 540 20 200 . . Destroy 0b10 Robot/NC 140 | . . . 5 35 10 50 . . . . 10 . 30 . . . . Destroy Leader 550 | . 10 . 52 138 34 72 10 20 . 30 34 . 120 10 20 . . Allied During Kill 121 | . . . . 121 . . . . . . . . . . . . . Successful Hack 155 | . 12 . 14 24 29 64 . . . . . . 12 . . . . Disable Machine 45 | . . . . 45 . . . . . . . . . . . . . Destroy Structure 38 | . . . 1 8 3 22 . . . . 2 . 2 . . . . Partial Spotted 180 | . . 15 15 90 15 15 . . . . . . 30 . . . . Lose Combat Pursuer 720 | . 75 . 15 . 60 135 30 75 . 240 15 . 60 . 15 . . Influence Decreases 4809 | . 40 92 115 665 564 764 147 127 315 224 324 243 533 296 185 175 . Entered New Map 1661 | . . 72 25 109 234 50 17 27 305 10 184 243 39 146 25 175 . Time Decay 2168 | . 40 20 90 246 130 404 130 100 10 214 140 . 334 150 160 . . Lost Part 10 | . . . . . . . . . . . . . 10 . . . . Lost Ally 220 | . . . . 160 50 10 . . . . . . . . . . . Purge Threat 750 | . . . . 150 150 300 . . . . . . 150 . . . . Squads Dispatched 23 | . . . . 2 1 8 . . . 1 1 . 10 . . . . Investigation 8 | . . . . . . 2 . . . . 1 . 5 . . . . Extermination 4 | . . . . . . 2 . . . . . . 2 . . . . Reinforcement 9 | . . . . 2 1 4 . . . . . . 2 . . . . Assault 1 | . . . . . . . . . . 1 . . . . . . . Garrison . | . . . . . . . . . . . . . . . . . . Intercept 1 | . . . . . . . . . . . . . 1 . . . . Searches Triggered . | . . . . . . . . . . . . . . . . . . Construction Impeded . | . . . . . . . . . . . . . . . . . . Haulers Reinforced 3 | . . . . . . 3 . . . . . . . . . . . Active Scanning Responses . | . . . . . . . . . . . . . . . . . . Cargo Convoy Interrupts . | . . . . . . . . . . . . . . . . . . Stealth | -11 -10 -10 -9 -9 -8 -7 -7 -7 -7 -6 -6 -6 -6 -6 -6 -6 -6 --------- Run | Yrd Mat Min Mat Sto Mat Fac Low Low Dat Pro Fac Was Fac Low Low Zio Dee Distress Signals 14 | . 1 1 . 3 4 1 . . . . 3 . 1 . . . . Communications Jammed . | . . . . . . . . . . . . . . . . . . Distress Signals . | . . . . . . . . . . . . . . . . . . Times Spotted 256 | . 10 15 9 20 22 32 11 14 4 34 12 4 37 8 12 . 12 Peak Tracking Total 13 | . 8 13 4 4 6 4 6 4 4 11 6 4 7 6 7 . 7 Tactical Retreats 29 | . 2 2 1 . 2 5 2 4 . 6 1 . 3 . 1 . . Traps | -11 -10 -10 -9 -9 -8 -7 -7 -7 -7 -6 -6 -6 -6 -6 -6 -6 -6 ------- Run | Yrd Mat Min Mat Sto Mat Fac Low Low Dat Pro Fac Was Fac Low Low Zio Dee Traps Triggered 4 | . . . 1 1 . . . . . . 1 . 1 . . . . Indirectly . | . . . . . . . . . . . . . . . . . . Trap Hack Attempts . | . . . . . . . . . . . . . . . . . . Triggered . | . . . . . . . . . . . . . . . . . . Disarmed . | . . . . . . . . . . . . . . . . . . Reprogrammed . | . . . . . . . . . . . . . . . . . . Reused . | . . . . . . . . . . . . . . . . . . Traps Extracted . | . . . . . . . . . . . . . . . . . . Installed . | . . . . . . . . . . . . . . . . . . Triggered . | . . . . . . . . . . . . . . . . . . Machines | -11 -10 -10 -9 -9 -8 -7 -7 -7 -7 -6 -6 -6 -6 -6 -6 -6 -6 ---------- Run | Yrd Mat Min Mat Sto Mat Fac Low Low Dat Pro Fac Was Fac Low Low Zio Dee Machines Disabled 7 | . . . . 3 . . . . . . . . . . . 4 . Max in Single Turn 1 | . . . . 1 . . . . . . . . . . . 1 . Garrison Access 5 | . . . . . 1 4 . . . . . . . . . . . Machines Repaired . | . . . . . . . . . . . . . . . . . . Machines Dismantled . | . . . . . . . . . . . . . . . . . . Machines Sabotaged . | . . . . . . . . . . . . . . . . . . Overloaded Fab Kills . | . . . . . . . . . . . . . . . . . . Hacking | -11 -10 -10 -9 -9 -8 -7 -7 -7 -7 -6 -6 -6 -6 -6 -6 -6 -6 --------- Run | Yrd Mat Min Mat Sto Mat Fac Low Low Dat Pro Fac Was Fac Low Low Zio Dee Machines Accessed 77 | . 2 . 2 13 8 24 3 1 4 . 5 . 14 . 1 . . Terminals 54 | . 2 . 2 13 6 14 1 1 . . 4 . 10 . 1 . . Fabricators 7 | . . . . . . 4 . . . . 1 . 2 . . . . Repair Stations . | . . . . . . . . . . . . . . . . . . Recycling Units . | . . . . . . . . . . . . . . . . . . Scanalyzers 4 | . . . . . 1 2 . . . . . . 1 . . . . Garrison Access 6 | . . . . . 1 4 . . . . . . 1 . . . . Total Hacks 366 | . 14 . 12 69 39 81 9 8 30 . 20 . 83 . 1 . . Successful 263 | . 12 . 7 42 28 37 9 8 30 . 18 . 71 . 1 . . Failed 103 | . 2 . 5 27 11 44 . . . . 2 . 12 . . . . Catastrophic 8 | . . . . 3 1 3 . . . . . . 1 . . . . Database Lockouts . | . . . . . . . . . . . . . . . . . . Manual 147 | . 10 . 7 36 23 18 1 . . . 9 . 43 . . . . Terminals 288 | . 14 . 12 69 33 59 7 8 . . 17 . 68 . 1 . . Fabricators 20 | . . . . . . 11 . . . . 3 . 6 . . . . Repair Stations . | . . . . . . . . . . . . . . . . . . Recycling Units . | . . . . . . . . . . . . . . . . . . Scanalyzers 12 | . . . . . 3 7 . . . . . . 2 . . . . Garrison Access 14 | . . . . . 3 4 . . . . . . 7 . . . . Terminal Hacks 181 | . 6 . 3 30 16 20 9 8 30 . 10 . 48 . 1 . . Record 27 | . . . . . . . 7 8 11 . . . . . 1 . . Part Schematic 20 | . . . . 6 . . . . 11 . . . 3 . . . . Robot Schematic 16 | . . . . 1 . 1 . . 5 . . . 9 . . . . Robot Analysis 5 | . . . . 4 1 . . . . . . . . . . . . Prototype ID Bank 17 | . 2 . 1 2 2 1 . . 3 . 3 . 3 . . . . Open Door 7 | . . . . 5 . . 2 . . . . . . . . . . Level Access Points 3 | . . . . . . . . . . . 1 . 2 . . . . Branch Access Points 6 | . 1 . . 1 1 1 . . . . . . 2 . . . . Emergency Access Points 1 | . . . . . 1 . . . . . . . . . . . . Machine Index 2 | . . . . . . . . . . . 1 . 1 . . . . Terminal Index 3 | . . . . 1 1 1 . . . . . . . . . . . Fabricator Index 1 | . . . . . 1 . . . . . . . . . . . . Scanalyzer Index 1 | . . . . . 1 . . . . . . . . . . . . Alert Level 16 | . . . . 3 2 4 . . . . 1 . 6 . . . . Unreport Threat 5 | . . . . 1 1 2 . . . . . . 1 . . . . Dispatch Records 1 | . . . . 1 . . . . . . . . . . . . . Maintenance Status 2 | . . . . . . 1 . . . . . . 1 . . . . Security Status 3 | . . . . . . . . . . . . . 3 . . . . Surveillance Status 1 | . . . . . . . . . . . . . 1 . . . . Transport Status 1 | . . . . . 1 . . . . . . . . . . . . Investigation Status 1 | . . . . . . . . . . . . . 1 . . . . Extermination Status 3 | . . . . . . . . . . . 1 . 2 . . . . Reinforcement Status 3 | . . . . . . 3 . . . . . . . . . . . Assault Status 1 | . . . . . . . . . . . . . 1 . . . . Recall Investigation 5 | . . . . . . . . . . . 1 . 4 . . . . Recall Extermination 2 | . . . . . . . . . . . . . 2 . . . . Recall Reinforcements 5 | . . . . . . 3 . . . . . . 2 . . . . Hauler Manifests 5 | . 1 . 1 . 1 1 . . . . . . 1 . . . . Registered Components 6 | . 1 . . 1 1 1 . . . . 1 . 1 . . . . Registered Prototypes 3 | . . . . 1 . 1 . . . . . . 1 . . . . Zone Layout 9 | . 1 . 1 3 2 . . . . . 1 . 1 . . . . Fabricator Hacks 9 | . . . . . . 3 . . . . 2 . 4 . . . . Network Status 1 | . . . . . . 1 . . . . . . . . . . . Load Schematic 5 | . . . . . . 2 . . . . 1 . 2 . . . . Build 3 | . . . . . . . . . . . 1 . 2 . . . . Repair Station Hacks . | . . . . . . . . . . . . . . . . . . Recycling Unit Hacks . | . . . . . . . . . . . . . . . . . . Scanalyzer 8 | . . . . . 3 3 . . . . . . 2 . . . . Retrieve Study 8 | . . . . . 3 3 . . . . . . 2 . . . . Garrison Access Hacks 5 | . . . . . 1 4 . . . . . . . . . . . Seal Access 5 | . . . . . 1 4 . . . . . . . . . . . Unauthorized Hacks 60 | . 6 . 4 12 8 7 . . . . 6 . 17 . . . . Terminals 51 | . 6 . 4 12 8 7 . . . . 5 . 9 . . . . Track 17 | . 2 . 1 7 2 1 . . . . . . 4 . . . . Assimilate 3 | . . . . . 2 1 . . . . . . . . . . . Botnet 19 | . 2 . 2 3 3 3 . . . . 3 . 3 . . . . Disrupt 4 | . 1 . . 1 . 1 . . . . 1 . . . . . . Operators 8 | . 1 . 1 1 1 1 . . . . 1 . 2 . . . . Fabricators 3 | . . . . . . . . . . . 1 . 2 . . . . Prioritize 3 | . . . . . . . . . . . 1 . 2 . . . . Repair Stations . | . . . . . . . . . . . . . . . . . . Recycling Units . | . . . . . . . . . . . . . . . . . . Scanalyzers . | . . . . . . . . . . . . . . . . . . Garrison Access 6 | . . . . . . . . . . . . . 6 . . . . Broadcast 1 | . . . . . . . . . . . . . 1 . . . . Decoy 1 | . . . . . . . . . . . . . 1 . . . . Redirect 1 | . . . . . . . . . . . . . 1 . . . . Reprogram 1 | . . . . . . . . . . . . . 1 . . . . Intercept 1 | . . . . . . . . . . . . . 1 . . . . Watchers 1 | . . . . . . . . . . . . . 1 . . . . Data Cores Recovered 4 | . . . . 1 . 2 . . . . . . 1 . . . . Used 1 | . . . . . . . . . . . . . 1 . . . . Hacking Detections 46 | . 2 . 2 8 5 20 . . . . 3 . 6 . . . . Full Trace Events 5 | . . . . . . 2 . . . . 1 . 2 . . . . Feedback Events 1 | . . . . . . 1 . . . . . . . . . . . Corruption 1 | . . . . . . 1 . . . . . . . . . . . Feedback Blocked . | . . . . . . . . . . . . . . . . . . Robot Schematics Acquired 12 | . . . . 1 . 1 . . 5 . . . 5 . . . . Robots Built . | . . . . . . . . . . . . . . . . . . Authchips . | . . . . . . . . . . . . . . . . . . Time . | . . . . . . . . . . . . . . . . . . Total Robot Build Rating . | . . . . . . . . . . . . . . . . . . Part Schematics Acquired 19 | . . . . 6 . . . . 11 . . . 2 . . . . Parts Built 5 | . . . . . . . . . . . 2 . 3 . . . . Authchips . | . . . . . . . . . . . . . . . . . . Time 125 | . . . . . . . . . . . 58 . 67 . . . . Total Part Build Rating 33 | . . . . . . . . . . . 14 . 19 . . . . Part Studies Acquired 7 | . . . . . 3 3 . . . . . . 1 . . . . Parts Repaired . | . . . . . . . . . . . . . . . . . . Time . | . . . . . . . . . . . . . . . . . . Parts Recycled . | . . . . . . . . . . . . . . . . . . Recycled Matter . | . . . . . . . . . . . . . . . . . . Retrieved Matter . | . . . . . . . . . . . . . . . . . . Retrieved Components . | . . . . . . . . . . . . . . . . . . Parts Scanalyzed . | . . . . . . . . . . . . . . . . . . Part Schematics Acquired . | . . . . . . . . . . . . . . . . . . Parts Damaged . | . . . . . . . . . . . . . . . . . . Bothacking | -11 -10 -10 -9 -9 -8 -7 -7 -7 -7 -6 -6 -6 -6 -6 -6 -6 -6 ------------ Run | Yrd Mat Min Mat Sto Mat Fac Low Low Dat Pro Fac Was Fac Low Low Zio Dee Used RIF Installer . | . . . . . . . . . . . . . . . . . . Robots Hacked . | . . . . . . . . . . . . . . . . . . Non-combat . | . . . . . . . . . . . . . . . . . . Combat . | . . . . . . . . . . . . . . . . . . Robot Hacks Applied . | . . . . . . . . . . . . . . . . . . Relay Couplers Released . | . . . . . . . . . . . . . . . . . . Fabnet Peak Effective % . | . . . . . . . . . . . . . . . . . . Robots Rewired . | . . . . . . . . . . . . . . . . . . Allies Hacked . | . . . . . . . . . . . . . . . . . . Hacks Repelled . | . . . . . . . . . . . . . . . . . . Allies | -11 -10 -10 -9 -9 -8 -7 -7 -7 -7 -6 -6 -6 -6 -6 -6 -6 -6 -------- Run | Yrd Mat Min Mat Sto Mat Fac Low Low Dat Pro Fac Was Fac Low Low Zio Dee Total Allies 12 | . . . . 10 1 1 . . . . . . . . . . . Largest Group 10 | . . . . 10 2 1 . . . . . . . . . . . Highest-Rated Group 88 | . . . . 88 24 10 . . . . . . . . . . . Highest-Rated Ally 16 | . . . . 16 16 10 . . . . . . . . . . . Total Orders . | . . . . . . . . . . . . . . . . . . Ally Attacks 87 | . . . . 86 1 . . . . . . . . . . . . Total Damage 852 | . . . . 852 . . . . . . . . . . . . . Kills 13 | . . . . 13 . . . . . . . . . . . . . Allies Corrupted . | . . . . . . . . . . . . . . . . . . Allies Melted . | . . . . . . . . . . . . . . . . . . Intel | -11 -10 -10 -9 -9 -8 -7 -7 -7 -7 -6 -6 -6 -6 -6 -6 -6 -6 ------- Run | Yrd Mat Min Mat Sto Mat Fac Low Low Dat Pro Fac Was Fac Low Low Zio Dee Active Infowar (turns) 3135 | . . . . . 21 965 273 216 33 459 287 18 754 109 . . . Machine Analysis 3135 | . . . . . 21 965 273 216 33 459 287 18 754 109 . . . ECM 43 | . . . . . . . . . . . . . 43 . . . . Robot Analysis Total 154 | . . . . 4 1 . . . 149 . . . . . . . . Derelict Logs Recovered 5 | . . . . . . . 1 1 . 1 . . . . 1 1 . Drone Launches . | . . . . . . . . . . . . . . . . . . Drone Recoveries . | . . . . . . . . . . . . . . . . . . Exploration | -11 -10 -10 -9 -9 -8 -7 -7 -7 -7 -6 -6 -6 -6 -6 -6 -6 -6 ------------- Run | Yrd Mat Min Mat Sto Mat Fac Low Low Dat Pro Fac Was Fac Low Low Zio Dee Turns Passed 5025 | 15 92 43 197 520 272 965 273 216 33 459 287 18 754 304 324 165 88 Spaces Moved 9839 | 30 125 107 213 795 467 1886 572 481 97 724 446 65 1341 737 1054 484 215 Core 101 | 30 71 . . . . . . . . . . . . . . . . Treads . | . . . . . . . . . . . . . . . . . . Legs . | . . . . . . . . . . . . . . . . . . Wheels . | . . . . . . . . . . . . . . . . . . Hover . | . . . . . . . . . . . . . . . . . . Flight 9738 | . 54 107 213 795 467 1886 572 481 97 724 446 65 1341 737 1054 484 215 Fastest Speed 17 | 50 40 40 40 29 31 20 20 20 20 20 26 26 20 24 24 24 17 Average Speed 27 | 50 45 40 40 32 31 26 25 25 24 25 38 28 24 24 24 24 23 Slowest Speed 91 | 50 50 40 40 40 31 31 26 26 26 26 91 91 26 24 24 24 24 Overloaded Moves 138 | . . . . . . 21 12 6 24 3 . . 58 . . . 14 Propulsion Burnouts . | . . . . . . . . . . . . . . . . . . Robots Hopped 29 | . 3 . . 1 2 12 . . . 1 . . 10 . . . . Potential Cave-ins . | . . . . . . . . . . . . . . . . . . Cave-ins Triggered . | . . . . . . . . . . . . . . . . . . Exploration Rate (%) 49 | 3 31 26 27 83 35 55 71 62 78 66 13 65 32 78 81 61 31 Regions Visited 17 Branch Regions 10 Pre-discovered Areas 29 | . . . . . . . . 1 27 . . . . . . 1 . Known Exits Taken 4 | . 1 . . . . 1 . . . 1 . . 1 . . . . Unknown Exits Taken 11 | 1 . 1 1 1 1 . 1 1 1 . . . . 1 1 1 . Scrap Searched 17 | . . . . . . . 1 4 . 1 . . . 3 4 4 . Spaces Dug 42 | . . . 1 8 3 23 . 2 . . 2 . 2 1 . . . Terrain Destroyed 42 | . . . 1 8 3 23 . 2 . . 2 . 2 1 . . . Melee 42 | . . . 1 8 3 23 . 2 . . 2 . 2 1 . . . Projectile . | . . . . . . . . . . . . . . . . . . AOE . | . . . . . . . . . . . . . . . . . . Terrain Rammed . | . . . . . . . . . . . . . . . . . . Walls Destroyed . | . . . . . . . . . . . . . . . . . . Machines Disabled . | . . . . . . . . . . . . . . . . . . Actions | -11 -10 -10 -9 -9 -8 -7 -7 -7 -7 -6 -6 -6 -6 -6 -6 -6 -6 --------- Run | Yrd Mat Min Mat Sto Mat Fac Low Low Dat Pro Fac Was Fac Low Low Zio Dee Total 11303 | 29 155 106 287 974 550 2165 661 538 101 907 514 64 1617 815 1089 506 225 Wait 776 | . 3 . 32 95 67 138 56 29 . 105 35 . 161 40 15 . . Move 9768 | 29 118 106 212 792 464 1862 571 480 96 721 446 64 1320 736 1053 483 215 Hop 25 | . 3 . . 1 . 10 . . . 1 . . 10 . . . . Pick Up 9 | . . . . 2 . . . . . 4 . . 2 1 . . . Fast Attach 43 | . 1 . 3 6 1 11 1 . 4 . 1 . 8 4 1 2 . Attach 1 | . . . . . . . . . . . . . 1 . . . . Detach 1 | . . . . . . . . . . . . . 1 . . . . Swap 17 | . . . . 4 . 9 . . . . 3 . . 1 . . . Drop 40 | . . . 1 5 . 15 1 . . 2 2 . 6 5 . 3 . Fire . | . . . . . . . . . . . . . . . . . . Melee 359 | . . . 18 38 18 81 16 15 1 41 21 . 58 19 13 10 10 Ram 30 | . 30 . . . . . . . . . . . . . . . . Kick . | . . . . . . . . . . . . . . . . . . Crush . | . . . . . . . . . . . . . . . . . . Escape Stasis 32 | . . . . 15 . 17 . . . . . . . . . . . Rewire . | . . . . . . . . . . . . . . . . . . Trap . | . . . . . . . . . . . . . . . . . . Miscellaneous 202 | . . . 21 16 . 22 16 14 . 33 6 . 50 9 7 8 . Route ------- -11/Scrapyard -10/Materials (discovered 2 exits: *Min x2) -10/Mines -9/Materials (discovered 2 exits: *Mat / *Sto) -9/Storage (discovered 2 exits: *Mat / Rec) -8/Materials -7/Factory (discovered 3 exits: *Fac / *Low x2) -7/Lower Caves -7/Lower Caves -7/Data Miner -6/Proximity Caves -6/Factory (discovered 4 exits: Fac x4) -6/Waste -6/Factory (discovered 2 exits: *Low x2) -6/Lower Caves -6/Lower Caves (discovered 2 exits: *Fac / *Zio) -6/Zion -6/Deep Caves History --------- Turn | Location | Event 4 | -11/Scrapyard | Discovered new exit (range 16) 16 | -11/Scrapyard | Entered Materials 24 | -10/Materials | Identified exit to Mines 78 | -10/Materials | Core integrity fell below 50% 108 | -10/Materials | Entered Mines 109 | -10/Mines | Assembled infested the area 141 | -10/Mines | Found a Scrap Suit stashed away for nefarious purposes 141 | -10/Mines | Discovered new exit (range 11) 151 | -10/Mines | Entered Materials 152 | -9/Materials | Core integrity fell below 50% 153 | -9/Materials | Reached level 2 196 | -9/Materials | Core integrity fell below 20% 260 | -9/Materials | Discovered new exit (range 7) 291 | -9/Materials | Reached level 3 338 | -9/Materials | Build established: Hacker-Mutant 346 | -9/Materials | Discovered new exit (range 6) 348 | -9/Materials | Entered Storage 368 | -9/Storage | Reached level 4 390 | -9/Storage | Upgraded with Propulsion slot (x1) 402 | -9/Storage | Upgraded with Weapon slot (x2) 452 | -9/Storage | Assisted by bots powering up and referring to "LRC-V3" 522 | -9/Storage | Reached level 5 532 | -9/Storage | Lost 4 allies 551 | -9/Storage | Discovered new exit (range 22) 578 | -9/Storage | Upgraded with Propulsion slot (x2) 662 | -9/Storage | Identified exit to Recycling 767 | -9/Storage | Reached level 6 868 | -9/Storage | Entered Materials 868 | -8/Materials | Accompanied by 2 allies 870 | -8/Materials | Reached level 7 889 | -8/Materials | Build established: Hacker-Sprinter 994 | -8/Materials | Watched by a mysterious "MATRIX" hacker. 1117 | -8/Materials | Upgraded with Utility slot (x1) 1140 | -8/Materials | Discovered new exit (range 5) 1140 | -8/Materials | Entered Factory 1142 | -7/Factory | Reached level 8 1248 | -7/Factory | Reached level 9 1435 | -7/Factory | Upgraded with Weapon slot (x1) 1463 | -7/Factory | Upgraded with Utility slot (x1) 1507 | -7/Factory | Discovered new exit (range 6) 1528 | -7/Factory | Discovered new exit (range 12) 1643 | -7/Factory | Discovered new exit (range 8) 1750 | -7/Factory | Reached level 10 1811 | -7/Factory | Upgraded with Utility slot (x1) 2072 | -7/Factory | Identified exit to Lower Caves 2105 | -7/Factory | Entered Lower Caves 2108 | -7/Lower Caves | Learned Factory emergency access door positions 2167 | -7/Lower Caves | Spotted B-75 Beast 2175 | -7/Lower Caves | Reached level 11 2268 | -7/Lower Caves | Discovered new exit (range 15) 2273 | -7/Lower Caves | Murdered Warlord Statue 2320 | -7/Lower Caves | Learned Research emergency access door positions 2320 | -7/Lower Caves | Learned Factory security intel 2323 | -7/Lower Caves | Attracted the attention of an 0b10 base 2378 | -7/Lower Caves | Entered another Lower Caves area 2409 | -7/Lower Caves | Encountered a Warlord checkpoint 2446 | -7/Lower Caves | Attracted the attention of an 0b10 base 2454 | -7/Lower Caves | Reached level 12 2482 | -7/Lower Caves | Learned location of Armory (-3) 2482 | -7/Lower Caves | Learned Research emergency access door positions 2482 | -7/Lower Caves | Learned Extension security intel 2536 | -7/Lower Caves | Spotted B-75 Beast 2591 | -7/Lower Caves | Discovered new exit (range 6) 2594 | -7/Lower Caves | Entered Data Miner 2594 | -7/Data Miner | Discovered new exit (range 6) 2599 | -7/Data Miner | Met Data Miner 2606 | -7/Data Miner | Learned location of Section 7 (-2) 2606 | -7/Data Miner | Acquired the access code to Warlord's prototype stash 2609 | -7/Data Miner | Received God Mode back door access code from Data Miner 2611 | -7/Data Miner | Reached level 13 2611 | -7/Data Miner | Destroyed Data Miner 2614 | -7/Data Miner | Reached level 14 2614 | -7/Data Miner | Interfaced with the Data Conduit 2614 | -7/Data Miner | Upgraded with Utility slot (x2) 2615 | -7/Data Miner | Found Prototype Hackware 2615 | -7/Data Miner | Identified Ghost Barrier 2616 | -7/Data Miner | Found Prototype Hackware 2616 | -7/Data Miner | Identified System Mapper 2618 | -7/Data Miner | Upgraded with Utility slot (x1) 2618 | -7/Data Miner | Found Prototype Hackware 2618 | -7/Data Miner | Identified Quantum Router 2620 | -7/Data Miner | Upgraded with Utility slot (x1) 2620 | -7/Data Miner | Found Prototype Hackware 2620 | -7/Data Miner | Identified Deep Network Scanner 2627 | -7/Data Miner | Entered Proximity Caves 2630 | -6/Proximity Caves | Attracted the attention of an 0b10 checkpoint 2713 | -6/Proximity Caves | Reached level 15 2780 | -6/Proximity Caves | Found DCF Scrap (13 items) 2816 | -6/Proximity Caves | Attracted the attention of an 0b10 outpost 2842 | -6/Proximity Caves | Identified exit to Factory 2910 | -6/Proximity Caves | Build established: Wizard-Sprinter 3000 | -6/Proximity Caves | Reached level 16 3086 | -6/Proximity Caves | Entered Factory 3088 | -6/Factory | Reached level 17 3089 | -6/Factory | Loaded intel: 258 machine locations 3098 | -6/Factory | Upgraded with Utility slot (x1) 3128 | -6/Factory | Spotted B-75 Beast 3182 | -6/Factory | Destroyed B-75 Beast 3194 | -6/Factory | Identified exit to Factory 3194 | -6/Factory | Targeted by mysterious "MATRIX" hacker. 3246 | -6/Factory | Fabricated Force Lance? 3293 | -6/Factory | Core integrity fell below 50% 3373 | -6/Factory | Sucked down chute 3373 | -6/Factory | Entered Waste 3380 | -6/Waste | Spotted C-40 Crusher 3383 | -6/Waste | Spotted C-40 Crusher 3383 | -6/Waste | Spotted C-40 Crusher 3385 | -6/Waste | Spotted C-40 Crusher 3388 | -6/Waste | EMP discharged 3388 | -6/Waste | Discovered new exit (range 15) 3388 | -6/Waste | Spotted C-40 Crusher 3391 | -6/Waste | Entered Factory 3392 | -6/Factory | Loaded intel: 306 machine locations 3394 | -6/Factory | Identified exit to Lower Caves 3468 | -6/Factory | Reached level 18 3583 | -6/Factory | Upgraded with Propulsion slot (x1) 3653 | -6/Factory | Discovered exit to Lower Caves (range 11) 3677 | -6/Factory | Fabricated Force Lance? 4045 | -6/Factory | Fabricated Lgt. Regenerative Plating? 4114 | -6/Factory | Intercept squad dispatched 4114 | -6/Factory | Reached level 19 4127 | -6/Factory | Upgraded with Power slot (x1) 4135 | -6/Factory | Spotted Tracker 4145 | -6/Factory | Entered Lower Caves 4210 | -6/Lower Caves | Attacked by a faux Warlord 4423 | -6/Lower Caves | Discovered new exit (range 10) 4428 | -6/Lower Caves | Encountered a Warlord checkpoint 4449 | -6/Lower Caves | Entered another Lower Caves area 4467 | -6/Lower Caves | Learned Factory stockpile data 4552 | -6/Lower Caves | Discovered new exit (range 13) 4598 | -6/Lower Caves | Attracted the attention of an 0b10 checkpoint 4724 | -6/Lower Caves | Discovered exit to Factory (range 15) 4773 | -6/Lower Caves | Entered Zion 4816 | -6/Zion | Learned 4 Factory zone layouts 4842 | -6/Zion | Met Imprinter 4861 | -6/Zion | Found Prototype Device 4861 | -6/Zion | Identified Phasing AFG 4928 | -6/Zion | Discovered new exit (range 4) 4928 | -6/Zion | Saw the warning signs outside the Deep Caves entrance 4938 | -6/Zion | Entered Deep Caves 5007 | -6/Deep Caves | Attacked by Z-Imprinter 5015 | -6/Deep Caves | Z-Facility disabled 5020 | -6/Deep Caves | Core integrity fell below 20% 5026 | -6/Deep Caves | Destroyed by NK-SZX(z) with Zionite Laser-S Last Messages --------------- XA-CWM(z). 05001_ XA-CWM(z) destroyed. 05004_ Force Lance follow-up attack on QX-MJ5(z). 05004_ QX-MJ5(z) destroyed. Z-Imprinter: GET AWAY FROM HERE! I've worked too hard for our future just to have you ruin everything! 05010_ Destroyed Prototype Hover Unit. 05015_ Z-Facility disabled. 05016_ Force Lance follow-up attack on Z-Imprinter. 05016_ Z-Imprinter suffers critical hit (Impale). 05016_ Destroyed Prototype Protection. 05021_ Z-Imprinter suffers critical hit (Impale). 05021_ Destroyed Prototype Hover Unit. 05021_ Force Lance follow-up attack on Z-Imprinter. Map ----- +----------------------------------------------------+ | | | | | | | | | | | | | | | | | | | | | | | | | | | | | ????????????????##???????????????????????????????? | | ???????????????# [?????###############???????????? | | ???????????????# [??#### ##??????????? | | ???????????????# [?## "?????##???? | | ???????###?###?# ### ###### ##??? | | ?????### !#!### ## ## # #??? | | ? # %%!!#; #### | | ==%[ z | | ! | | z z I z | | z z | | " @ """"" | | """" " """"" | | """"""" """""" | | """""""""""""" | | """"""""""" | | ? """""""""""""" | | ? """?"""""""""" | | ?? ""????????"""" | | ???? ""?????????""" | | ?????? "?????????? " | | ??????? ????????? | | ????????? ?????????? | | ??????????? ?????????? | | ?????????????? ??????????? | | ???????????????? ??????????? | | ????????????????????????????????"" | | ????????????????????????????????? | | ????????????????????????????????? | | ?????????????????????????????????? | | ??????????????????????????????????" | | ??????????????????????????????????? | | ????????????????????????????????????? | | ??????????????????????????????????????? | | ?????????????????????????????????????????? | | ???????????????????????????????????????????? | +----------------------------------------------------+ Best States ------------- Heat Dissipation 31 Energy Generation 22 Energy Capacity 300 Matter Stores 300 Matter Capacity 300 Sight Range 16 Terrain Scan Density 10 ECM Strength 1 Weapon Cycling 15 Evasion (%) 75 Melee Accuracy 8 Target Analysis 5 Core Analysis 6 Force Boost 20 Offensive Hacking 60 Defensive Hacking 60 Item Schematics ----------------- Lgt. Nuclear Core | -9/Storage | Hacked Spear | -9/Storage | Hacked Imp. Light Armor Plating | -9/Storage | Hacked Shotgun | -9/Storage | Hacked Imp. Datajack | -9/Storage | Hacked Com. Matter Pod | -9/Storage | Hacked Combat Drone Bay | -7/Data Miner | Free Lgt. Regenerative Plating | -7/Data Miner | Free Cld. Aerolev Unit | -7/Data Miner | Free Exp. Weapon Shielding | -7/Data Miner | Free Force Rifle | -7/Data Miner | Free Arm. Medium Treads | -7/Data Miner | Free Imp. Recalibrator | -7/Data Miner | Free Hyp. Gauss Cannon | -7/Data Miner | Free Adv. Heat Sink | -7/Data Miner | Free Force Lance | -7/Data Miner | Free Adv. Cryofiber Web | -7/Data Miner | Free Adv. Melee Analysis Suite | -6/Factory | Hacked Mni. Drone Bay | -6/Factory | Hacked Robot Schematics ------------------ L-31 Rogue | -9/Storage | Hacked B-36 Bruiser | -7/Factory | Hacked S-27 Virus | -7/Data Miner | Free B-48 Gladiator | -7/Data Miner | Free G-50 Soldier | -7/Data Miner | Free A-15 Conveyor | -7/Data Miner | Free M-22 Extractor | -7/Data Miner | Free S-10 Pest | -6/Factory | Hacked W-25 Informer | -6/Factory | Hacked Y-64 Sentinel | -6/Factory | Hacked L-41 Fighter | -6/Factory | Hacked G-47 Trooper | -6/Factory | Hacked Fabricated ------------ Force Lance | x2 | -6/Factory Force Lance | x2 | -6/Factory Lgt. Regenerative Plating | x1 | -6/Factory Repaired ---------- Nothing Studied --------- Maul | -8/Materials | Hacked Imp. Ion Engine | -8/Materials | Hacked Mining Claw | -8/Materials | Hacked Spear | -7/Factory | Hacked Greatsword | -7/Factory | Hacked Power Maul | -7/Factory | Hacked Xenon Bombardment Thruster | -6/Factory | Hacked Alien Tech Used ----------------- None Achievements -------------- Coming In Hot Ew, Corruption Express Service Into The Breach The Better Part Of Valor We Love MA Challenges ------------ None RPGLIKE | -11 -10 -10 -9 -9 -8 -7 -7 -7 -7 -6 -6 -6 -6 -6 -6 -6 -6 --------- Run | Yrd Mat Min Mat Sto Mat Fac Low Low Dat Pro Fac Was Fac Low Low Zio Dee Levels Raised 18 | . . . 2 3 1 3 1 1 2 2 1 . 2 . . . . XP Earned 31388 | 3000 350 500 2600 4617 2190 3920 1550 1600 2250 3350 2259 139 1750 219 532 220 342 XP Spent 29475 | . 2700 . 1500 4250 500 3000 50 . 7400 1250 2600 800 4825 . 600 . . Upgrades 38 | . 6 . 5 7 1 3 1 . 4 2 1 2 5 . 1 . . Power Slot 1 | . . . . . . . . . . . . . 1 . . . . Propulsion Slot 4 | . . . . 3 . . . . . . . . 1 . . . . Utility Slot 8 | . . . . . 1 2 . . 4 . 1 . . . . . . Weapon Slot 3 | . . . . 2 . 1 . . . . . . . . . . . Heat Dissipation 1 | . . . . . . . 1 . . . . . . . . . . Energy Generation 1 | . . . . 1 . . . . . . . . . . . . . Energy Storage 2 | . . . . . . . . . . . . 1 1 . . . . Mass Support 4 | . . . 1 . . . . . . . . 1 2 . . . . Inventory Capacity 3 | . . . . 1 . . . . . 2 . . . . . . . Melee Accuracy 5 | . . . 4 . . . . . . . . . . . 1 . . Hack Attack % 3 | . 3 . . . . . . . . . . . . . . . . Hack Defense % 3 | . 3 . . . . . . . . . . . . . . . . Protomatter Created 2113 | . 14 . 156 60 . 191 134 136 . 537 43 . 630 110 55 . 47 Integrity Restored 3881 | . . . 468 301 . 420 317 253 . 620 129 . 900 171 135 167 . Core 3282 | . . . 468 224 . 371 259 206 . 495 129 . 737 145 135 113 . Parts 599 | . . . . 77 . 49 58 47 . 125 . . 163 26 . 54 . Protomatter Decayed 872 | . . . . 196 71 47 31 24 . 98 . . 288 107 10 . . Game ------ Seed WeaponsWeaponDrive Manual? 0 Play Time 01:54:29 Cumulative 178.7 hours Start 2026.02.15 @ 21:09:10 End 2026.02.16 @ 14:19:09 Sessions 3 Manual Loads 0 Difficulty Rogue Special Mode Winter2019/RPGLIKE Game No. 192 Rogue 192 Adventurer 0 Explorer 0 Win Type - Total 13 Types 11/0/0/1/0/0/1/0/0/0 Lore% 43 Gallery% 53 Achievement% 43 Wizard Run 0 Options --------- Layout 2 ASCII 0 Keyboard 0 Movement Numpad Keybinds 0 Fullscreen 1 Font 24/Smallcaps Map View 50x44 Zoom Use 0% Tactical HUD 1 Map Filters NONE Filters NONE Steam 1 RUN: b8103c77-9ba8-4143-99b3-71fe3079f19a